bitfinex-derivatives/quotes_SOLF0:USTF0_20250808
["timestamp","ask_amount","ask_price","bid_price","bid_amount"]
[1754660739152,5.6401,177.23,177.18,385.0614]
[1754660739451,3.22,177.24,177.18,385.0614]
[1754660739653,5.6411,177.2,177.17,109.42]
[1754660739851,6.56504442,177.24,177.17,109.42]
[1754660740052,3.22,177.23,177.17,109.42]
[1754660740244,8.8601,177.23,177.18,5.6413]
[1754660740449,3.22,177.25,177.17,115.98504442]
[1754660740747,3.22,177.24,177.19,6.56504442]
[1754660741055,3.22,177.26,177.19,6.56504442]
[1754660741358,3.22,177.26,177.21,6.56504442]
[1754660741545,3.22,177.26,177.22,109.52]
[1754660741854,3.22,177.28,177.23,6.56504442]
[1754660742455,3.22,177.28,177.24,5.6394]
[1754660742659,3.22,177.28,177.23,6.56504442]
[1754660742855,3.22,177.31,177.25,6.56504442]
[1754660743656,6.56504442,177.36,177.27,6.56504442]
[1754660743657,3.22,177.36,177.27,6.56504442]
[1754660743857,3.22,177.36,177.28,109.5]
[1754660744250,3.22,177.34,177.28,109.5]
[1754660744954,5.637,177.33,177.28,109.5]
[1754660745156,3.22,177.34,177.28,109.5]
[1754660745351,5.6371,177.32,177.28,109.5]
[1754660745550,3.22,177.34,177.28,109.5]
[1754660745551,3.22,177.31,177.28,109.5]
[1754660745947,6.56504442,177.34,177.28,109.5]
[1754660746152,3.22,177.29,177.24,109.6]
[1754660746553,3.22,177.27,177.24,109.6]
[1754660746851,3.22,177.24,177.2,385.82504442]
[1754660747158,3.22,177.29,177.21,109.56]
[1754660747556,3.22,177.31,177.22,6.56504442]
[1754660747756,3.14676945,177.3,177.22,6.56504442]
[1754660748054,3.14676945,177.29,177.21,109.56]
[1754660748249,3.22,177.26,177.21,109.56]
[1754660748449,3.22,177.24,177.21,109.56]
[1754660748649,3.14676945,177.23,177.21,109.56]
[1754660748953,6.36676945,177.22,177.21,109.56]
[1754660749757,6.36676945,177.22,177.16,6.56504442]
[1754660749758,5.6409,177.2,177.16,6.56504442]
[1754660749961,5.6409,177.2,177.14,149.7734415]
[1754660749962,6.36676945,177.19,177.17,109.46]
[1754660750262,6.56504442,177.26,177.17,109.46]
[1754660750263,3.14676945,177.18,177.17,109.46]
[1754660750755,6.36676945,177.18,177.17,109.46]
[1754660750961,6.36676945,177.18,177.17,109.48]
[1754660751354,3.14676945,177.18,177.17,109.48]
[1754660751760,6.36676945,177.18,177.17,109.48]
[1754660752255,3.14676945,177.18,177.17,109.48]
[1754660753057,3.14676945,177.18,177.17,115.12]
[1754660753253,3.14676945,177.18,177.17,109.48]
[1754660754057,3.14676945,177.18,177.17,116.04504442]
[1754660754257,3.14676945,177.18,177.17,109.48]
[1754660755051,6.36676945,177.18,177.17,109.48]
[1754660755258,3.16382973,177.18,177.17,109.48]
[1754660755460,6.38382973,177.18,177.15,241.56504442]
[1754660755660,6.38382973,177.17,177.16,109.44]
[1754660756358,3.16382973,177.17,177.16,109.44]
[1754660757261,6.38382973,177.17,177.16,109.44]
[1754660758958,6.38382973,177.17,177.1,379.24]
[1754660759264,3.22,177.12,177.11,109.36]
[1754660759562,6.38382973,177.12,177.11,109.36]
[1754660760263,3.16382973,177.12,177.11,115.92504442]
[1754660760656,3.16382973,177.12,177.11,109.36]
[1754660761070,3.17448668,177.12,177.11,109.36]
[1754660761258,6.39448668,177.12,177.11,109.36]
[1754660761563,3.22,177.11,177.06,6.56504442]
[1754660761769,3.22,177.08,177.07,109.38]
[1754660761959,6.39448668,177.08,177.07,109.38]
[1754660762369,3.22,177.07,177.05,109.4]
[1754660762560,3.22,177.07,177.06,5.6453]
[1754660762759,6.39460335,177.07,177.06,5.6453]
[1754660762959,10.47532158,177.07,177.06,5.6453]
[1754660763155,3.22,177.06,177.05,115.0456]
[1754660763363,10.47532158,177.06,177.05,109.4]
[1754660763668,3.22,177.05,177.02,6.56504442]
[1754660763966,10.47532158,177.04,177.03,109.34]
[1754660764367,15.11530712,177.04,177.03,109.34]
[1754660764563,10.38638362,177.04,177.03,109.34]
[1754660764862,16.68523855,177.04,177.03,109.34]
[1754660765263,7.16638362,177.04,177.01,109.3]
[1754660765468,3.22,177.01,176.93,6.56504442]
[1754660765671,3.22,176.98,176.94,109.32]
[1754660765970,3.18,176.95,176.94,109.32]
[1754660766166,10.34703579,176.95,176.94,109.32]
[1754660766669,7.16703579,176.95,176.94,109.32]
[1754660767063,10.34703579,176.95,176.94,109.32]
[1754660767468,10.34703579,176.95,176.94,106.848]
[1754660767771,7.15212901,176.95,176.92,109.3]
[1754660767966,10.33212901,176.94,176.92,109.3]
[1754660768166,10.33160429,176.93,176.92,109.3]
[1754660768363,7.15160429,176.93,176.92,109.3]
[1754660769265,3.97700094,176.93,176.92,109.3]
[1754660769467,10.33160429,176.93,176.92,109.3]
[1754660769666,7.15700094,176.93,176.92,109.3]
[1754660770063,10.33160429,176.93,176.92,109.3]
[1754660770672,7.15700094,176.93,176.92,109.3]
[1754660774472,3.18,176.94,176.92,109.3]
[1754660774870,3.18,176.93,176.92,109.3]
[1754660775776,10.33160429,176.93,176.92,109.3]
[1754660776070,7.15160429,176.93,176.92,115.86504442]
[1754660776373,7.15160429,176.95,176.92,115.86504442]
[1754660776571,3.18,176.99,176.92,109.3]
[1754660776872,3.18,176.97,176.92,109.3]
[1754660777073,3.18,176.95,176.92,109.3]
[1754660777265,3.18,176.94,176.92,109.3]
[1754660777467,3.18,176.95,176.92,115.86504442]
[1754660777669,6.56504442,177.01,176.92,109.3]
[1754660777670,3.18,176.94,176.92,109.3]
[1754660778066,4.72179604,177.05,176.92,109.3]
[1754660778067,3.18,176.93,176.92,109.3]
[1754660778663,3.18,176.95,176.92,109.3]
[1754660778869,7.15160429,176.95,176.92,115.86504442]
[1754660779065,3.18,177.0,176.92,115.86504442]
[1754660779374,3.18,176.98,176.92,109.3]
[1754660779676,6.56504442,177.0,176.92,109.3]
[1754660779677,3.18,176.96,176.92,109.3]
[1754660779868,3.18,176.94,176.92,109.3]
[1754660780076,3.18,176.93,176.92,109.3]
[1754660780572,7.15160429,176.96,176.92,109.3]
[1754660780767,7.15700094,176.95,176.92,109.3]
[1754660780965,3.18,176.94,176.92,109.3]
[1754660781171,3.18,176.95,176.92,109.3]
[1754660781468,3.18,176.93,176.92,109.3]
[1754660781874,3.18,176.93,176.92,114.9498]
[1754660782078,7.15160429,176.94,176.92,114.9498]
[1754660782275,7.15160429,176.99,176.92,115.86504442]
[1754660782578,17.58725493,177.1,176.94,6.56504442]
[1754660782579,10.33160429,176.98,176.94,6.56504442]
[1754660782779,7.29221343,176.97,176.95,108.9]
[1754660782980,3.97700094,176.97,176.96,6.56504442]
[1754660783277,3.97700094,177.0,176.96,6.56504442]
[1754660783479,3.97700094,177.0,176.9,614.42]
[1754660783480,3.97700094,177.0,176.99,12.21264442]
[1754660783672,7.29221343,177.0,176.99,114.5476]
[1754660783876,10.47221343,177.0,176.99,121.11264442]
[1754660784076,6.49521249,177.0,176.99,121.11264442]
[1754660784277,3.18,177.0,176.99,108.9]
[1754660784677,7.15700094,177.0,176.99,108.9]
[1754660785072,3.97700094,177.0,176.99,108.9]
[1754660785274,1.50500094,177.0,176.99,115.46504442]
[1754660785474,6.49521249,177.04,176.99,115.46504442]
[1754660785783,3.18,177.06,177.02,6.56504442]
[1754660785980,3.18,177.04,177.03,110.76]
[1754660786180,3.31521249,177.04,177.03,116.4063]
[1754660786478,3.31521249,177.05,177.03,110.76]
[1754660786785,3.18,177.04,177.03,110.76]
[1754660786975,6.49521249,177.04,177.03,110.76]
[1754660787181,3.18,177.02,176.99,6.56504442]
[1754660787379,3.31521249,177.01,177.0,110.8]
[1754660787582,6.49521249,177.01,177.0,110.8]
[1754660789387,3.31521249,177.01,177.0,117.36504442]
[1754660789685,6.49521249,177.01,177.0,117.36504442]
[1754660789887,6.49521249,177.01,177.0,110.8]
[1754660790379,3.18,177.0,176.93,6.56504442]
[1754660790583,3.18,176.98,176.9,379.42]
[1754660790773,3.31521249,176.97,176.91,110.68]
[1754660790986,3.33186113,176.96,176.91,110.68]
[1754660791176,3.33186113,176.95,176.91,110.68]
[1754660791373,3.33400983,176.94,176.91,110.68]
[1754660791578,3.33400983,177.01,176.91,110.68]
[1754660791779,3.18,177.02,176.91,110.68]
[1754660792079,3.18,177.06,176.91,5.0]
[1754660792281,3.18,177.06,176.97,6.56504442]
[1754660792482,3.18,177.02,176.98,111.92]
[1754660792881,5.6472,177.01,176.98,111.92]
[1754660793088,3.18,177.0,176.91,6.56504442]
[1754660793288,3.18,177.0,176.92,111.86]
[1754660793584,3.18,177.0,176.94,5.6489]
[1754660793785,3.18,177.0,176.95,111.86]
[1754660794481,3.18,177.05,176.98,6.56504442]
[1754660794691,3.18,177.05,176.95,111.86]
[1754660794692,3.18,177.05,177.02,6.56504442]
[1754660794986,3.18,177.04,177.03,111.78]
[1754660797283,3.91380687,177.04,177.03,111.78]
[1754660798382,7.09380687,177.04,177.03,111.78]
[1754660798977,7.09380687,177.04,176.9,614.42]
[1754660799181,3.18,177.02,176.97,6.56504442]
[1754660799378,4.72179604,177.04,176.98,111.56]
[1754660799379,7.09380687,177.01,176.98,111.56]
[1754660799585,3.91380687,177.0,176.99,6.56504442]
[1754660799786,3.18,177.06,177.0,5.6472]
[1754660799985,3.18,177.05,177.01,118.08504442]
[1754660800194,3.18,177.05,177.02,111.56]
[1754660800195,7.90179604,177.05,177.02,111.56]
[1754660800384,3.18,177.04,177.02,111.56]
[1754660800691,3.18,177.03,177.02,111.56]
[1754660801285,7.90179604,177.06,177.02,111.56]
[1754660801489,3.18,177.06,177.04,6.56504442]
[1754660801688,3.18,177.06,177.05,111.5]
[1754660801881,3.18,177.06,177.05,110.08763715]
[1754660802086,7.90179604,177.06,177.05,110.08763715]
[1754660802289,7.90179604,177.06,177.05,107.96896905]
[1754660803088,4.72179604,177.06,177.05,107.96896905]
[1754660803293,7.90179604,177.08,177.05,114.53401347]
[1754660803495,4.72179604,177.08,177.05,107.96896905]
[1754660803684,3.18702321,177.07,177.06,5.6453]
[1754660803891,4.72179604,177.1,177.05,107.96896905]
[1754660804088,4.72179604,177.09,177.05,107.96896905]
[1754660804287,7.90179604,177.1,177.05,107.96896905]
[1754660804493,7.90179604,177.09,177.05,107.96896905]
[1754660804689,3.18,177.08,177.05,107.96896905]
[1754660804890,3.18,177.07,177.05,113.61466905]
[1754660805194,3.18,177.07,177.06,6.56504442]
[1754660805389,4.72179604,177.09,177.05,113.61466905]
[1754660805390,4.72179604,177.08,177.05,107.96896905]
[1754660805594,4.72179604,177.09,177.06,6.56504442]
[1754660805890,4.72179604,177.11,177.08,6.56504442]
[1754660806089,6.29885493,177.12,177.1,6.56504442]
[1754660806292,7.90252676,177.12,177.1,6.56504442]
[1754660806490,9.47885493,177.15,177.1,6.56504442]
[1754660806692,6.29885493,177.16,177.14,6.56504442]
[1754660806886,6.29885493,177.16,177.02,379.7]
[1754660806887,9.47885493,177.18,177.15,112.98]
[1754660807088,3.18,177.18,177.15,119.54504442]
[1754660807489,3.18,177.17,177.15,112.98]
[1754660807693,3.18,177.18,177.15,112.98]
[1754660807892,3.18,177.17,177.16,6.56504442]
[1754660808094,3.18,177.19,177.16,6.56504442]
[1754660808295,3.18,177.2,177.18,6.56504442]
[1754660808693,3.18,177.2,177.19,113.3]
[1754660809395,6.29885493,177.24,177.19,113.3]
[1754660809590,6.29885493,177.24,177.2,6.56504442]
[1754660809791,6.29885493,177.25,177.2,6.56504442]
[1754660809992,3.18,177.22,177.2,6.56504442]
[1754660810187,3.18,177.23,177.2,6.56504442]
[1754660810392,9.47885493,177.23,177.19,113.3]
[1754660810607,3.18,177.21,177.18,113.4]
[1754660811194,3.18,177.22,177.18,113.4]
[1754660811704,3.18,177.21,177.18,113.4]
[1754660812603,3.18,177.15,176.99,6.56504442]
[1754660812803,3.18,177.15,177.09,6.56504442]
[1754660813104,5.6429,177.14,177.09,113.58]
[1754660813400,3.18,177.13,177.09,113.58]
[1754660813802,6.56504442,177.17,177.09,113.58]
[1754660813803,3.18,177.12,177.09,113.58]
[1754660814002,6.29885493,177.17,177.09,113.58]
[1754660814003,3.18,177.16,177.09,113.58]
[1754660814306,3.18,177.13,177.09,113.58]
[1754660814602,3.18,177.15,177.09,113.58]
[1754660814895,9.48766306,177.19,177.09,119.22]
[1754660815097,3.18,177.31,177.09,119.22]
[1754660815098,9.48766306,177.27,177.09,119.22]
[1754660815401,382.6951109,177.46,177.09,119.22]
[1754660815402,9.48766306,177.29,177.09,113.58]
[1754660815702,3.18,177.3,177.13,5.0]
[1754660815995,3.18,177.28,177.24,6.56504442]
[1754660816201,3.18,177.26,177.17,5.6417]
[1754660816397,3.18,177.23,177.21,6.56504442]
[1754660816600,3.18,177.22,177.14,127.8]
[1754660816800,3.18,177.31,177.14,127.8]
[1754660817002,3.18,177.29,177.21,9.93010846]
[1754660817504,3.18,177.29,177.14,127.8]
[1754660817698,3.18,177.29,177.21,9.93010846]
[1754660817900,3.18,177.29,177.14,127.8]
[1754660818207,3.18,177.29,177.13,5.0]
[1754660818500,3.18,177.27,177.18,9.93010846]
[1754660818906,3.18,177.27,177.21,9.93010846]
[1754660819202,3.18,177.27,177.13,5.0]
[1754660819394,3.18,177.27,177.21,9.93010846]
[1754660819900,3.18,177.27,177.14,5.0]
[1754660820104,379.66,177.34,177.23,9.93010846]
[1754660820404,3.18,177.33,177.23,9.93010846]
[1754660820906,3.18,177.32,177.12,9.93010846]
[1754660821200,3.18,177.32,177.23,9.93010846]
[1754660821407,3.18,177.32,177.26,9.93010846]
[1754660821598,3.18,177.39,177.17,5.0]
[1754660821804,3.18,177.35,177.17,5.0]
[1754660822108,3.18,177.34,177.22,9.93010846]
[1754660822301,3.18,177.34,177.17,5.0]
[1754660822705,3.18,177.34,177.23,15.57000846]
[1754660822897,3.18,177.34,177.26,9.93010846]
[1754660823299,3.18,177.37,177.3,9.93010846]
[1754660823497,3.18,177.4,177.24,9.93010846]
[1754660823806,3.18,177.4,177.32,9.93010846]
[1754660824111,3.18,177.4,177.24,244.93010846]
[1754660824112,3.18,177.39,177.24,244.93010846]
[1754660824308,3.18,177.39,177.33,15.56670846]
[1754660824497,3.18,177.39,177.25,130.76]
[1754660824498,3.18,177.39,177.25,370.76]
[1754660824899,3.18,177.39,177.25,365.76]
[1754660825206,3.18,177.39,177.27,5.0]
[1754660825395,9.93010846,177.46,177.34,9.93010846]
[1754660825599,3.18,177.37,177.27,5.0]
[1754660825813,3.18,177.46,177.27,5.0]
[1754660826006,3.18,177.46,177.35,9.93010846]
[1754660826208,3.18,177.46,177.34,9.93010846]
[1754660826402,3.27,177.45,177.34,9.93010846]
[1754660826608,3.27,177.45,177.37,9.93010846]
[1754660826798,3.27,177.45,177.27,5.0]
[1754660827002,3.27,177.45,177.38,9.93010846]
[1754660827203,3.27,177.45,177.27,5.0]
[1754660827403,3.27,177.45,177.31,5.0]
[1754660827605,3.27,177.45,177.39,9.93010846]
[1754660827806,3.27,177.45,177.42,9.93010846]
[1754660828111,3.29,177.47,177.36,14.93010846]
[1754660828311,3.29,177.47,177.44,9.93010846]
[1754660828516,0.02,177.47,177.44,9.93010846]
[1754660828707,3.27,177.46,177.35,131.78]
[1754660828905,0.02,177.47,177.42,9.93010846]
[1754660829106,0.02,177.47,177.36,9.93010846]
[1754660829107,0.02,177.47,177.46,5.6326]
[1754660829409,3.27,177.52,177.45,9.93010846]
[1754660829613,3.27,177.51,177.47,9.93010846]
[1754660829810,3.27,177.5,177.47,9.93010846]
[1754660830111,9.48766306,177.61,177.45,9.93010846]
[1754660830112,3.27,177.58,177.45,9.93010846]
[1754660830605,3.27,177.58,177.39,379.18]
[1754660830606,3.27,177.52,177.4,9.93010846]
[1754660830812,3.27,177.51,177.39,379.18]
[1754660831018,3.27,177.51,177.45,9.93010846]
[1754660831204,3.27,177.51,177.43,9.93010846]
[1754660831407,3.27,177.5,177.46,9.93010846]
[1754660831603,3.27,177.49,177.39,384.18]
[1754660831809,3.27,177.48,177.46,9.93010846]
[1754660832009,3.27,177.63,177.43,9.93010846]
[1754660832214,3.27,177.55,177.39,379.18]
[1754660832510,9.93010846,177.55,177.42,9.93010846]
[1754660832710,5.6316,177.5,177.42,9.93010846]
[1754660833012,3.27,177.49,177.42,9.93010846]
[1754660833211,9.93010846,177.57,177.45,9.93010846]
[1754660833412,3.27,177.56,177.42,9.93010846]
[1754660834315,3.27,177.53,177.42,9.93010846]
[1754660834516,3.27,177.47,177.42,9.93010846]
[1754660835217,3.27,177.46,177.39,379.18]
[1754660835406,3.27,177.44,177.42,9.93010846]
[1754660835811,3.27,177.47,177.42,9.93010846]
[1754660836013,3.27,177.46,177.42,9.93010846]
[1754660836406,3.27,177.49,177.45,9.93010846]
[1754660836609,3.27,177.48,177.45,9.93010846]
[1754660837018,3.27,177.48,177.44,9.93010846]
[1754660837215,3.27,177.47,177.39,379.18]
[1754660837516,3.27,177.46,177.44,9.93010846]
[1754660837721,9.93010846,177.54,177.41,9.93010846]
[1754660838016,3.27,177.44,177.41,9.93010846]
[1754660838219,3.27,177.46,177.42,9.93010846]
[1754660838516,3.27,177.58,177.45,9.93010846]
[1754660838708,3.27,177.58,177.5,6.516068]
[1754660838908,3.27,177.58,177.48,6.516068]
[1754660839308,3.27,177.54,177.48,6.516068]
[1754660839511,3.27,177.64,177.52,6.516068]
[1754660839711,3.27,177.58,177.56,6.516068]
[1754660839915,6.516068,177.61,177.51,6.516068]
[1754660840215,6.516068,177.57,177.46,135.74]
[1754660840416,3.27,177.56,177.46,135.74]
[1754660840615,6.516068,177.55,177.44,6.516068]
[1754660840817,3.27,177.54,177.4,135.6]
[1754660841016,3.27,177.54,177.47,6.516068]
[1754660841216,3.27,177.53,177.49,6.516068]
[1754660841420,3.27,177.57,177.47,6.516068]
[1754660841616,3.27,177.53,177.44,6.516068]
[1754660841819,3.27,177.49,177.4,135.6]
[1754660842020,3.27,177.49,177.43,6.516068]
[1754660842515,3.27,177.49,177.4,135.6]
[1754660842715,3.27,177.49,177.44,6.516068]
[1754660842916,3.27,177.47,177.44,6.516068]
[1754660843111,6.516068,177.54,177.44,6.516068]
[1754660843311,5.6317,177.49,177.43,6.516068]
[1754660843521,6.516068,177.52,177.4,135.6]
[1754660843716,6.516068,177.48,177.4,135.6]
[1754660843922,3.27,177.47,177.38,6.516068]
[1754660844221,11.2598,177.55,177.42,6.516068]
[1754660844520,3.27,177.48,177.44,6.516068]
[1754660844825,3.27,177.46,177.36,5.0]
[1754660845117,3.27,177.45,177.43,6.516068]
[1754660845519,3.27,177.53,177.43,6.516068]
[1754660845722,3.27,177.52,177.45,6.516068]
[1754660846921,11.2526,177.67,177.35,21.98]
[1754660847128,6.516068,177.6,177.5,6.516068]
[1754660847327,3.27,177.54,177.44,136.36]
[1754660847520,3.27,177.54,177.5,6.516068]
[1754660847921,3.27,177.6,177.52,6.516068]
[1754660848124,3.27,177.6,177.5,5.6313]
[1754660848622,3.27,177.6,177.51,5.631]
[1754660848929,3.27,177.6,177.49,9.89945785]
[1754660849227,3.27,177.6,177.5,5.6313]
[1754660849421,3.27,177.6,177.49,9.89945785]
[1754660849619,3.27,177.6,177.54,5.6299]
[1754660849824,3.27,177.6,177.45,21.98]
[1754660850022,3.27,177.6,177.52,9.89945785]
[1754660850219,3.27,177.6,177.53,5.6304]
[1754660850627,3.27,177.6,177.51,9.89945785]
[1754660850820,3.27,177.59,177.51,9.89945785]
[1754660851022,3.27,177.62,177.54,9.89945785]
[1754660851916,3.27,177.6,177.54,9.89945785]
[1754660852124,9.89945785,177.67,177.45,16.98]
[1754660852424,5.6268,177.65,177.55,9.89945785]
[1754660852619,3.27,177.66,177.55,9.89945785]
[1754660853017,3.27,177.66,177.48,31.87945785]
[1754660853627,3.27,177.66,177.58,9.89945785]
[1754660855435,3.27,177.64,177.56,9.89945785]
[1754660856427,3.27,177.64,177.57,5.6291]
[1754660856627,3.29,177.73,177.54,378.64]
[1754660856823,3.29,177.73,177.56,5.0]
[1754660857132,3.29,177.73,177.56,21.98]
[1754660857434,3.29,177.72,177.65,9.89945785]
[1754660857823,3.29,177.72,177.54,395.62]
[1754660858022,3.29,177.72,177.59,9.89945785]
[1754660858227,3.29,177.72,177.57,9.89945785]
[1754660858536,5.626,177.67,177.57,9.89945785]
[1754660858732,3.29,177.66,177.55,135.42]
[1754660859033,3.29,177.66,177.56,9.89945785]
[1754660859229,3.29,177.66,177.54,514.0]
[1754660859427,3.29,177.63,177.51,9.89945785]
[1754660859627,6.19379232,177.71,177.47,5.632]
[1754660859628,5.6294,177.57,177.47,5.632]
[1754660859827,3.29,177.56,177.46,9.89945785]
[1754660860228,3.29,177.56,177.49,9.89945785]
[1754660860426,3.29,177.67,177.55,9.89945785]
[1754660860630,3.29,177.67,177.61,9.89945785]
[1754660860826,9.89945785,177.76,177.63,9.89945785]
[1754660861028,3.29,177.7,177.63,9.89945785]
[1754660861229,3.29,177.72,177.56,378.6]
[1754660861526,13.18945785,177.72,177.57,140.46]
[1754660861731,3.29,177.72,177.62,9.89945785]
[1754660862033,3.29,177.72,177.57,135.46]
[1754660862232,3.29,177.72,177.62,9.89945785]
[1754660862828,378.72,177.78,177.57,135.46]
[1754660862829,3.29,177.73,177.57,135.46]
[1754660863031,378.72,177.78,177.64,9.89945785]
[1754660863032,3.29,177.72,177.64,9.89945785]
[1754660863226,3.29,177.72,177.63,9.89945785]
[1754660864033,3.29,177.76,177.63,9.89945785]
[1754660864229,3.29,177.76,177.66,9.89945785]
[1754660864638,8.9131,177.76,177.67,5.6259]
[1754660865032,3.29,177.76,177.67,5.6259]
[1754660865232,3.29,177.75,177.66,15.52565785]
[1754660865433,3.29,177.75,177.66,9.89945785]
[1754660865635,9.89945785,177.79,177.62,5.0]
[1754660865839,3.29,177.73,177.65,9.89945785]
[1754660866338,3.29,177.73,177.65,15.52595785]
[1754660866533,3.29,177.73,177.65,9.89945785]
[1754660866840,9.89945785,177.75,177.62,9.89945785]
[1754660867140,3.29,177.74,177.62,9.89945785]
[1754660867337,3.29,177.7,177.62,9.89945785]
[1754660867842,3.29,177.69,177.62,9.89945785]
[1754660868028,3.29,177.71,177.65,9.89945785]
[1754660868835,6.19379232,177.83,177.7,6.49976689]
[1754660868836,6.49976689,177.81,177.7,6.49976689]
[1754660869042,3.29,177.8,177.7,6.49976689]
[1754660869237,3.29,177.76,177.54,6.49976689]
[1754660869436,3.29,177.76,177.68,6.49976689]
[1754660869739,3.29,177.76,177.73,6.49976689]
[1754660869939,6.49976689,177.83,177.73,6.49976689]
[1754660870239,3.29,177.75,177.73,6.49976689]
[1754660870436,3.29,177.75,177.69,140.6251]
[1754660870637,3.29,177.74,177.65,6.49976689]
[1754660870833,12.69355921,177.87,177.73,6.49976689]
[1754660871034,6.49976689,177.89,177.79,6.49976689]
[1754660871230,6.49976689,177.89,177.69,378.38]
[1754660871231,3.29,177.88,177.77,6.49976689]
[1754660871540,6.49976689,177.83,177.73,6.49976689]
[1754660871840,3.29,177.82,177.73,6.49976689]
[1754660872340,3.29,177.82,177.75,6.49976689]
[1754660872543,3.29,177.85,177.77,6.49976689]
[1754660872839,3.29,177.93,177.84,6.49976689]
[1754660873039,3.29,177.93,177.78,134.44]
[1754660873343,3.29,177.93,177.86,6.49976689]
[1754660873731,9.78976689,177.93,177.76,6.49976689]
[1754660873932,3.29,177.92,177.82,6.49976689]
[1754660874237,3.29,177.92,177.84,6.49976689]
[1754660874441,3.29,177.92,177.88,6.49976689]
[1754660874641,3.29,177.9,177.77,134.28]
[1754660874839,3.29,177.99,177.89,6.49976689]
[1754660875144,3.29,177.97,177.89,6.49976689]
[1754660875345,3.29,177.97,177.9,6.49976689]
[1754660875541,3.29,177.97,177.8,5.0]
[1754660875742,3.29,177.97,177.91,6.49976689]
[1754660876338,3.29,177.96,177.91,6.49976689]
[1754660877240,3.29,178.01,177.95,6.49976689]
[1754660878241,3.29,178.01,177.97,6.49976689]
[1754660878646,3.29,178.01,177.87,6.49976689]
[1754660878849,3.29,178.01,177.96,6.49976689]
[1754660879048,3.29,178.0,177.82,389.4229]
[1754660879245,3.29,178.0,177.96,6.49976689]
[1754660879449,448.52875112,178.1,177.96,6.49976689]
[1754660879643,3.29,178.07,177.98,6.49976689]
[1754660879953,3.29,178.07,177.97,6.49976689]
[1754660880152,3.29,178.07,177.99,6.49976689]
[1754660880343,3.29,178.05,177.96,6.49976689]
[1754660880740,6.49976689,178.06,177.96,6.49976689]
[1754660880940,6.49976689,178.02,177.92,6.49976689]
[1754660881145,6.49976689,178.0,177.82,378.18]
[1754660881452,3.29,177.97,177.82,378.18]
[1754660881751,5.6186,177.92,177.86,6.49976689]
[1754660881939,9.78976689,177.95,177.86,6.49976689]
[1754660882144,6.49976689,177.93,177.83,6.49976689]
[1754660882345,3.29,177.92,177.85,12.11996689]
[1754660882742,3.29,177.92,177.87,6.49976689]
[1754660882948,3.29,177.91,177.89,6.49976689]
[1754660883440,3.29,178.0,177.89,6.49976689]
[1754660883644,3.29,178.0,177.92,6.49976689]
[1754660883840,3.29,178.0,177.87,6.49976689]
[1754660883841,3.29,178.0,177.94,6.49976689]
[1754660884642,3.29,178.0,177.87,6.49976689]
[1754660884643,3.29,178.02,177.95,9.8499426]
[1754660884843,3.29,178.02,177.91,9.8499426]
[1754660885048,3.29,177.96,177.89,15.4691426]
[1754660885244,9.8499426,178.07,177.92,9.8499426]
[1754660885541,3.29,178.06,177.92,9.8499426]
[1754660885744,3.29,178.06,177.95,9.8499426]
[1754660886248,3.16,178.04,177.98,9.8499426]